bitfinex-derivatives/quotes_BTCF0:USTF0_20241208
["timestamp","ask_amount","ask_price","bid_price","bid_amount"]
[1733666362740,0.28442102,100470.0,100460.0,0.55051072]
[1733666362932,0.13545265,100470.0,100460.0,0.55051072]
[1733666363321,0.28438545,100470.0,100460.0,0.55051072]
[1733666364747,0.28438545,100470.0,100460.0,0.55859735]
[1733666365731,0.1489328,100470.0,100460.0,0.55859735]
[1733666366138,0.26801817,100470.0,100460.0,0.55859735]
[1733666366332,0.26801817,100470.0,100460.0,0.55859702]
[1733666366827,0.1489328,100470.0,100460.0,0.55859702]
[1733666367532,0.11902913,100470.0,100460.0,0.55859702]
[1733666368544,0.11902913,100470.0,100460.0,0.70700694]
[1733666368728,0.08925284,100470.0,100460.0,0.88345084]
[1733666369135,0.08925284,100470.0,100460.0,1.18345084]
[1733666369945,0.08925284,100470.0,100460.0,1.18345073]
[1733666372328,0.20828197,100480.0,100470.0,0.04476]
[1733666372531,0.11902913,100480.0,100470.0,0.47644619]
[1733666372735,0.20820761,100480.0,100470.0,0.47644619]
[1733666372930,0.20820761,100480.0,100470.0,0.57598334]
[1733666373365,0.20820761,100480.0,100470.0,0.56789715]
[1733666373528,0.09117848,100480.0,100470.0,0.57598281]
[1733666373730,0.13593348,100480.0,100470.0,0.57598281]
[1733666373926,0.13693348,100480.0,100470.0,0.57598281]
[1733666374238,0.16678413,100480.0,100470.0,0.21020702]
[1733666374535,0.16678413,100480.0,100470.0,0.57100702]
[1733666375840,0.31571693,100480.0,100470.0,0.57100702]
[1733666376141,0.1966878,100480.0,100470.0,0.57100702]
[1733666376337,0.31554491,100480.0,100470.0,0.57100702]
[1733666377833,0.31554491,100480.0,100470.0,0.54080702]
[1733666378940,0.1966878,100480.0,100470.0,0.54080702]
[1733666379334,0.34774805,100480.0,100470.0,0.54080702]
[1733666380336,0.2288878,100480.0,100470.0,0.54080702]
[1733666380646,0.2288878,100480.0,100470.0,0.54080732]
[1733666380840,0.34775248,100480.0,100470.0,0.36391017]
[1733666381141,0.04476,100470.0,100460.0,0.01030957]
[1733666381442,0.044764,100460.0,100450.0,0.436667]
[1733666381739,0.31228824,100460.0,100450.0,0.53930504]
[1733666382040,0.31228824,100460.0,100450.0,0.17850504]
[1733666382340,0.22508858,100460.0,100450.0,0.37422479]
[1733666382535,0.22508858,100460.0,100450.0,0.41899379]
[1733666383331,0.14862458,100460.0,100450.0,0.51854085]
[1733666383532,0.26754437,100460.0,100450.0,0.97286362]
[1733666383741,0.20810773,100460.0,100450.0,1.00426362]
[1733666383936,0.08918794,100470.0,100460.0,0.044764]
[1733666384238,0.08918794,100470.0,100460.0,0.47485197]
[1733666384637,0.08918794,100470.0,100460.0,0.57438912]
[1733666385344,0.20810773,100470.0,100460.0,0.57438912]
[1733666385543,0.20810773,100470.0,100460.0,0.54408912]
[1733666385741,0.16367979,100470.0,100460.0,0.54011195]
[1733666386144,0.34424569,100470.0,100460.0,0.54011195]
[1733666386346,0.40365082,100470.0,100460.0,0.406564]
[1733666386653,0.43475082,100470.0,100460.0,0.047764]
[1733666386853,0.43475082,100470.0,100460.0,0.408564]
[1733666387448,0.28612624,100470.0,100460.0,0.047764]
[1733666387833,0.28612624,100470.0,100460.0,0.408564]
[1733666388234,0.43495756,100470.0,100460.0,0.41167458]
[1733666388444,0.28612624,100470.0,100460.0,0.41167458]
[1733666389145,0.28612624,100470.0,100460.0,0.41167457]
[1733666389541,0.28612624,100470.0,100460.0,0.05087457]
[1733666389845,0.28612624,100470.0,100460.0,0.408564]
[1733666390034,0.28612624,100470.0,100460.0,0.41167462]
[1733666391739,0.28612624,100470.0,100460.0,0.00611062]
[1733666392138,0.32644585,100470.0,100460.0,0.003]
[1733666393252,0.72827647,100470.0,100460.0,0.003]
[1733666393442,0.56495276,100470.0,100460.0,0.003]
[1733666393648,0.32644585,100470.0,100460.0,0.003]
[1733666393848,0.68724585,100470.0,100460.0,0.003]
[1733666394947,0.71706691,100470.0,100460.0,0.003]
[1733666395244,0.93945532,100470.0,100450.0,0.405567]
[1733666395555,0.33270153,100460.0,100450.0,0.405567]
[1733666395752,0.075866,100460.0,100450.0,0.405567]
[1733666396347,0.20969819,100460.0,100450.0,0.50822508]
[1733666396548,0.35851817,100460.0,100450.0,0.50822508]
[1733666396748,0.35851817,100460.0,100450.0,0.51920226]
[1733666397146,0.17991998,100460.0,100450.0,0.51320226]
[1733666397449,0.18091998,100460.0,100450.0,0.52120226]
[1733666398346,0.18091998,100460.0,100450.0,0.51622508]
[1733666398547,0.18091998,100460.0,100450.0,0.52120185]
[1733666398747,0.22568398,100460.0,100450.0,0.88200185]
[1733666398948,0.34473702,100460.0,100450.0,0.88200185]
[1733666399949,0.12005304,100460.0,100450.0,0.88200185]
[1733666400151,0.12005304,100460.0,100450.0,1.09144575]
[1733666400540,0.20934479,100460.0,100450.0,1.39144575]
[1733666400740,0.09029175,100460.0,100450.0,1.54103386]
[1733666400949,0.001,100460.0,100450.0,1.77629239]
[1733666401138,0.001,100460.0,100450.0,1.77658772]
[1733666401544,0.001,100460.0,100450.0,1.59984849]
[1733666401753,0.001,100460.0,100450.0,1.59984691]
[1733666401960,0.001,100460.0,100450.0,1.60014238]
[1733666402255,0.001,100460.0,100450.0,1.89421555]
[1733666402549,0.001,100460.0,100450.0,2.20843487]
[1733666403343,0.20834479,100470.0,100460.0,0.044764]
[1733666403551,0.08929175,100470.0,100460.0,0.62248552]
[1733666403748,0.08929175,100470.0,100460.0,1.00610465]
[1733666403941,0.08929175,100470.0,100460.0,1.10565171]
[1733666404351,0.20834479,100480.0,100460.0,1.10565171]
[1733666404553,0.20834479,100480.0,100470.0,0.40556]
[1733666404747,0.31262802,100480.0,100470.0,0.41364621]
[1733666405069,0.34392802,100480.0,100470.0,0.41364621]
[1733666405254,0.34392802,100480.0,100470.0,0.51318336]
[1733666405456,0.34393576,100480.0,100470.0,0.51318336]
[1733666406863,0.34593576,100480.0,100470.0,0.51318336]
[1733666407267,0.22687498,100480.0,100470.0,0.51318336]
[1733666407471,0.22787498,100480.0,100470.0,0.51318336]
[1733666408265,0.079055,100480.0,100470.0,0.51318336]
[1733666408569,0.22787498,100480.0,100470.0,0.51318336]
[1733666409565,0.22787498,100480.0,100470.0,0.37913159]
[1733666409761,0.22787498,100480.0,100470.0,0.41891546]
[1733666410274,0.25765319,100480.0,100470.0,0.41891546]
[1733666410570,0.25765319,100480.0,100470.0,0.36391008]
[1733666410775,0.25765319,100480.0,100470.0,0.3608]
[1733666411168,0.25765319,100480.0,100470.0,0.36391045]
[1733666411365,0.54835319,100480.0,100470.0,0.36391045]
[1733666411567,0.54835319,100480.0,100460.0,0.3608]
[1733666411568,0.04476,100470.0,100460.0,0.3608]
[1733666411771,0.43489937,100470.0,100460.0,0.36391064]
[1733666411976,0.28606019,100470.0,100460.0,0.044764]
[1733666412170,0.28606019,100470.0,100460.0,0.405564]
[1733666412570,0.21099819,100470.0,100460.0,0.46344795]
[1733666412879,0.30414031,100470.0,100460.0,0.0031108]
[1733666413076,0.044764,100460.0,100450.0,0.054768]
[1733666413269,0.22363197,100460.0,100450.0,0.40867896]
[1733666413463,0.22363197,100460.0,100450.0,0.04787896]
[1733666413673,0.25336219,100460.0,100450.0,0.04787896]
[1733666413973,0.25336219,100460.0,100450.0,0.40867896]
[1733666414383,0.25336219,100460.0,100450.0,0.41067896]
[1733666414582,0.25436219,100460.0,100450.0,0.41667896]
[1733666415486,0.25436219,100460.0,100450.0,0.41667899]
[1733666416073,0.28626219,100460.0,100450.0,0.05587899]
[1733666416273,0.28626219,100460.0,100450.0,0.01111099]
[1733666416473,0.28626219,100460.0,100450.0,0.37191099]
[1733666417174,0.28626219,100460.0,100450.0,0.01111099]
[1733666417377,0.28625099,100460.0,100450.0,0.05587999]
[1733666417680,0.28625099,100460.0,100450.0,0.41667999]
[1733666417987,0.26884181,100460.0,100450.0,0.52120459]
[1733666418188,0.20930803,100460.0,100450.0,0.52120459]
[1733666418880,0.12003477,100460.0,100450.0,0.52120459]
[1733666420982,0.20930723,100460.0,100450.0,0.69864443]
[1733666421177,0.16479877,100460.0,100450.0,0.42165753]
[1733666421380,0.37610581,100460.0,100450.0,0.06085753]
[1733666421572,0.25707104,100460.0,100450.0,0.06085753]
[1733666422294,0.43565803,100460.0,100450.0,0.01608853]
[1733666422592,0.43565803,100460.0,100450.0,0.01111099]
[1733666423482,0.29685099,100460.0,100450.0,0.008]
[1733666424187,0.28685099,100460.0,100450.0,0.3688]
[1733666424382,0.20988699,100460.0,100450.0,0.413569]
[1733666424679,0.12003383,100460.0,100450.0,0.52120424]
[1733666425373,0.16479783,100460.0,100450.0,0.06085718]
[1733666425577,0.31359382,100460.0,100450.0,0.06085718]
[1733666425771,0.37314698,100460.0,100450.0,0.01111095]
[1733666425971,0.22435099,100460.0,100450.0,0.01111095]
[1733666426172,0.22435099,100460.0,100450.0,0.008]
[1733666426377,0.22435099,100460.0,100450.0,0.01111116]
[1733666427573,0.22435099,100460.0,100450.0,0.05588016]
[1733666427776,0.14978465,100460.0,100450.0,0.41668016]
[1733666427987,0.26880324,100460.0,100450.0,0.5212046]
[1733666428188,0.20927671,100460.0,100450.0,0.5212046]
[1733666428578,0.20927671,100460.0,100450.0,0.5520046]
[1733666430586,0.20927671,100460.0,100450.0,0.55200375]
[1733666432888,0.25404071,100460.0,100450.0,0.55200375]
[1733666433088,0.25404071,100460.0,100450.0,0.52120375]
[1733666433391,0.25404071,100460.0,100450.0,0.53155656]
[1733666433590,0.16478259,100460.0,100450.0,0.53155656]
[1733666433783,0.16478259,100460.0,100450.0,0.42165669]
[1733666433979,0.16478259,100460.0,100450.0,0.06085669]
[1733666433980,0.31360412,100460.0,100450.0,0.06085669]
[1733666434288,0.19454865,100460.0,100450.0,0.05587965]
[1733666434588,0.37313564,100460.0,100450.0,0.05587965]
[1733666435178,0.37313564,100460.0,100450.0,0.01111065]
[1733666435383,0.22435099,100460.0,100450.0,0.01111065]
[1733666435685,0.27273942,100460.0,100450.0,0.01111065]
[1733666435890,0.22435099,100460.0,100450.0,0.01111065]
[1733666436390,0.22444125,100460.0,100450.0,0.01111065]
[1733666436981,0.045764,100460.0,100450.0,0.01111065]
[1733666437189,0.065764,100460.0,100450.0,0.01111065]
[1733666438986,1.007264,100460.0,100450.0,0.008]
[1733666439188,1.22594412,100460.0,100450.0,0.008]
[1733666440381,1.46445103,100460.0,100450.0,0.008]
[1733666440577,1.4645512,100460.0,100450.0,0.008]
[1733666440798,0.044769,100450.0,100440.0,0.01]
[1733666440990,0.044773,100440.0,100430.0,0.3708]
[1733666441184,0.27194619,100440.0,100430.0,0.36391158]
[1733666441493,0.22355016,100440.0,100430.0,0.36391158]
[1733666442386,0.22355016,100440.0,100430.0,0.37291158]
[1733666442585,0.22455016,100440.0,100430.0,0.37291158]
[1733666442988,0.37347128,100440.0,100430.0,0.37291158]
[1733666443188,0.37347128,100440.0,100430.0,0.41768958]
[1733666443400,0.32869828,100440.0,100430.0,0.42368958]
[1733666443685,0.14992112,100440.0,100430.0,0.45618958]
[1733666444197,0.15192112,100440.0,100430.0,0.44718958]
[1733666444798,0.19669412,100440.0,100430.0,0.44718958]
[1733666444999,0.19669412,100440.0,100430.0,0.44118958]
[1733666445200,0.19869412,100440.0,100430.0,0.44118958]
[1733666445506,0.37747128,100440.0,100430.0,0.44118958]
[1733666446000,0.19869412,100440.0,100430.0,0.44118958]
[1733666446200,0.37747128,100440.0,100430.0,0.44118958]
[1733666446395,0.37747128,100440.0,100430.0,0.40868958]
[1733666446794,0.37747128,100440.0,100430.0,0.36391158]
[1733666447002,0.40747128,100440.0,100430.0,0.36391158]
[1733666447901,0.40747128,100440.0,100430.0,0.00311158]
[1733666448107,0.61935016,100440.0,100430.0,0.00311158]
[1733666448498,0.25855016,100440.0,100430.0,0.00311158]
[1733666448696,0.25855016,100440.0,100420.0,0.4562329]
[1733666448697,0.044778,100430.0,100420.0,0.4562329]
[1733666448905,0.16380464,100430.0,100420.0,0.44934477]
[1733666449101,0.31258794,100430.0,100420.0,0.44934477]
[1733666449296,0.16380464,100430.0,100420.0,0.44934477]
[1733666449502,0.11902664,100430.0,100420.0,0.55389041]
[1733666450497,0.11902664,100430.0,100420.0,0.55589041]
[1733666451025,0.1935613,100430.0,100420.0,0.55589041]
[1733666451198,0.1935613,100430.0,100420.0,0.45134477]
[1733666451504,0.2255613,100430.0,100420.0,0.45632353]
[1733666451810,0.2255613,100430.0,100420.0,0.45134477]
[1733666454599,0.2255613,100430.0,100420.0,0.4513447]
[1733666456208,0.2255613,100430.0,100420.0,0.4065647]
[1733666456394,0.2255613,100430.0,100420.0,0.3966118]
[1733666457403,0.2255613,100430.0,100420.0,0.39661182]
[1733666458036,0.2255613,100430.0,100420.0,0.3935]
[1733666458205,0.2255613,100430.0,100420.0,0.39661182]
[1733666458206,0.34453183,100430.0,100420.0,0.39661182]
[1733666458810,0.34453183,100430.0,100420.0,0.3935]
[1733666459110,0.34453183,100430.0,100420.0,0.39661182]
[1733666459305,0.2255613,100430.0,100420.0,0.39661182]
[1733666462904,0.2255613,100430.0,100420.0,0.39661183]
[1733666463109,0.40433846,100430.0,100420.0,0.39661183]
[1733666464312,0.37233846,100430.0,100420.0,0.44637272]
[1733666464505,0.1935613,100430.0,100420.0,0.44637272]
[1733666465320,0.1935613,100430.0,100420.0,0.44637248]
[1733666466105,0.27195352,100430.0,100420.0,0.44637248]
[1733666466310,0.22355516,100430.0,100420.0,0.44637248]
[1733666468213,0.22355516,100430.0,100420.0,0.4463725]
[1733666468408,0.22355516,100430.0,100420.0,0.62381234]
[1733666468724,0.22355516,100430.0,100420.0,0.4015905]
[1733666469404,0.044778,100430.0,100420.0,0.0407905]
[1733666470020,0.09317895,100430.0,100420.0,0.0407905]
[1733666470205,0.09317895,100430.0,100420.0,0.0100905]
[1733666470206,0.20749883,100430.0,100420.0,0.0100905]
[1733666470411,0.82666949,100430.0,100420.0,0.00511173]
[1733666470714,0.70494866,100430.0,100420.0,0.00511173]
[1733666471415,0.70494866,100430.0,100410.0,0.3708]
[1733666471416,0.044782,100420.0,100410.0,0.3708]
[1733666471719,0.044787,100410.0,100400.0,0.11]
[1733666471919,0.41443671,100410.0,100400.0,0.1049803]
[1733666472213,0.044787,100410.0,100400.0,0.10498031]
[1733666472412,0.044787,100410.0,100400.0,0.1]
[1733666472815,0.14420091,100410.0,100400.0,0.1]
[1733666473005,0.456587,100410.0,100400.0,0.1]
[1733666473410,0.756587,100410.0,100400.0,0.1]
[1733666473612,0.456587,100410.0,100400.0,0.1]
[1733666474114,0.63529586,100410.0,100400.0,0.1]
[1733666474610,0.67639586,100410.0,100400.0,0.102]
[1733666475812,0.95709586,100410.0,100400.0,0.102]
[1733666478121,0.96714747,100410.0,100400.0,0.102]
[1733666481323,0.75496485,100410.0,100400.0,0.102]
[1733666481719,0.47426485,100410.0,100400.0,0.102]
[1733666481921,0.75496485,100410.0,100400.0,0.102]
[1733666482114,0.96714747,100410.0,100400.0,0.102]
[1733666483222,0.98738953,100410.0,100400.0,0.102]
[1733666487717,0.20341076,100410.0,100400.0,0.146791]
[1733666487913,0.20341076,100410.0,100400.0,0.187191]
[1733666487914,0.32225828,100410.0,100400.0,0.187191]
[1733666488128,0.38211962,100410.0,100400.0,0.187191]
[1733666488518,0.37206801,100410.0,100400.0,0.547991]
[1733666488720,0.14857215,100410.0,100400.0,0.547991]
[1733666488919,0.26742664,100410.0,100400.0,0.547991]
[1733666489121,0.26742664,100410.0,100400.0,0.55110354]
[1733666489622,0.20799981,100410.0,100400.0,0.65070017]
[1733666489824,0.02474532,100410.0,100400.0,0.65567963]
[1733666490031,0.11885449,100420.0,100400.0,0.95567963]
[1733666490225,0.11885449,100420.0,100410.0,0.405587]
[1733666490422,0.11885449,100420.0,100410.0,0.40869954]
[1733666490624,0.16363649,100420.0,100410.0,0.40869954]
[1733666490924,0.16363649,100420.0,100410.0,0.36391254]
[1733666491132,0.31220864,100420.0,100400.0,0.55599]
[1733666491428,0.11887132,100410.0,100400.0,0.55110222]
[1733666491630,0.31222747,100420.0,100400.0,1.01148893]
[1733666491822,0.31222747,100420.0,100410.0,0.405587]
[1733666492025,0.31222747,100420.0,100410.0,0.40869914]
[1733666492224,0.19335615,100420.0,100410.0,0.40869913]
[1733666492628,0.19535615,100420.0,100410.0,0.40869913]
[1733666492819,0.3172431,100420.0,100410.0,0.40869913]
[1733666493233,0.19835615,100420.0,100410.0,0.40869913]
[1733666493830,0.19835615,100420.0,100410.0,0.40869914]
[1733666495923,0.044787,100410.0,100400.0,0.52112938]
[1733666496130,0.16371554,100410.0,100400.0,0.50431235]
[1733666496434,0.31228769,100410.0,100400.0,0.1]
[1733666496623,0.23605915,100410.0,100400.0,0.1]
[1733666496820,0.59685915,100410.0,100400.0,0.1]
[1733666497026,0.69009586,100410.0,100400.0,0.102]
[1733666498033,0.511387,100410.0,100400.0,0.102]
[1733666498230,0.72028846,100410.0,100400.0,0.102]
[1733666499634,0.846027,100410.0,100400.0,0.102]
[1733666499934,0.85610044,100410.0,100400.0,0.102]
[1733666500533,1.0650019,100410.0,100400.0,0.102]
[1733666502827,1.3457019,100410.0,100400.0,0.102]
[1733666503127,1.58420881,100410.0,100400.0,0.102]
[1733666506132,1.37530735,100410.0,100400.0,0.102]
[1733666506339,1.34523848,100410.0,100400.0,0.102]
[1733666506635,1.58374539,100410.0,100400.0,0.102]
[1733666506824,1.34523848,100410.0,100400.0,0.102]
[1733666507431,1.37530735,100410.0,100400.0,0.102]
[1733666508031,1.67530735,100410.0,100400.0,0.102]
[1733666508232,1.66235374,100410.0,100400.0,0.102]
[1733666509131,1.39520533,100410.0,100400.0,0.102]
[1733666509531,1.36540891,100410.0,100400.0,0.102]
[1733666509954,1.00460891,100410.0,100400.0,0.102]
[1733666510238,0.79617476,100410.0,100400.0,0.102]
[1733666510443,1.00460891,100410.0,100400.0,0.102]
[1733666510833,1.00460891,100410.0,100400.0,0.507591]
[1733666510834,0.58786115,100410.0,100400.0,0.507591]
[1733666511143,0.37229294,100410.0,100400.0,0.634691]
[1733666512035,0.32750594,100410.0,100400.0,0.634691]
[1733666512437,0.1488648,100410.0,100400.0,0.634691]
[1733666512743,0.1488648,100410.0,100400.0,0.73428763]
[1733666512937,0.26795187,100410.0,100400.0,0.73428763]
[1733666513242,0.11908707,100410.0,100400.0,1.03428763]
[1733666513436,0.11908707,100410.0,100400.0,1.03740014]
[1733666514238,0.16387407,100410.0,100400.0,1.03740014]
[1733666514438,0.16387407,100410.0,100400.0,1.04759523]
[1733666514645,0.16387407,100410.0,100400.0,0.74759523]
[1733666515441,0.31273887,100410.0,100400.0,0.74448272]
[1733666515639,0.1936518,100410.0,100400.0,0.73428763]
[1733666515836,0.1936518,100410.0,100400.0,0.73739988]
[1733666516040,0.1936518,100410.0,100400.0,0.63780325]
[1733666516240,0.1936518,100410.0,100400.0,0.50851225]
[1733666516435,0.1936518,100410.0,100400.0,0.51070325]
[1733666516641,0.3127237,100410.0,100400.0,0.55050329]
[1733666516840,0.3127237,100410.0,100400.0,0.627491]
[1733666517035,0.3127237,100410.0,100400.0,0.63060333]
[1733666518542,0.3127237,100410.0,100400.0,0.63060337]
[1733666518742,0.3127237,100410.0,100400.0,0.627491]
[1733666519233,0.3127237,100410.0,100400.0,0.4628]
[1733666519433,0.37229294,100410.0,100400.0,0.4628]
[1733666519647,0.41059294,100410.0,100400.0,0.4628]
[1733666519879,0.45299294,100410.0,100400.0,0.4628]
[1733666521746,0.30412814,100410.0,100400.0,0.4628]
[1733666522250,0.135487,100410.0,100400.0,0.102]
[1733666522446,0.34993383,100410.0,100400.0,0.102]
[1733666522646,0.044787,100410.0,100400.0,0.507591]
[1733666522859,0.27187881,100410.0,100400.0,0.507591]
[1733666523054,0.22346673,100410.0,100400.0,0.507591]
[1733666523548,0.22346673,100410.0,100400.0,0.146791]
[1733666523750,0.22346673,100410.0,100400.0,0.51070357]
[1733666526255,0.044787,100410.0,100400.0,0.51070357]
[1733666526549,0.22354666,100410.0,100400.0,0.51070357]
[1733666526949,0.22354666,100410.0,100400.0,0.55140357]
[1733666527149,0.22354666,100410.0,100400.0,0.69668006]
[1733666527752,0.22354666,100410.0,100400.0,0.69667971]
[1733666527942,0.22354666,100410.0,100400.0,0.69169997]
[1733666530155,0.22354666,100410.0,100400.0,0.55140334]
[1733666530680,0.22354666,100410.0,100400.0,0.55140336]
[1733666533257,0.22354666,100410.0,100400.0,0.83341964]
[1733666533258,0.14898774,100410.0,100400.0,0.83341964]
[1733666533763,0.11918677,100410.0,100400.0,0.87391964]
[1733666534757,0.11918677,100410.0,100400.0,1.17391964]
[1733666534950,0.19377074,100420.0,100400.0,1.55898511]
[1733666534951,0.26817451,100420.0,100400.0,1.55898511]
[1733666535259,0.11918677,100420.0,100410.0,0.444387]
[1733666535453,0.11918677,100420.0,100410.0,0.62991901]
[1733666535855,0.11918677,100420.0,100410.0,0.72950572]
[1733666536667,0.11918677,100420.0,100410.0,0.55206588]
[1733666536856,0.12118677,100420.0,100410.0,0.55206588]
[1733666537053,0.12118677,100420.0,100410.0,0.72950572]
[1733666537455,0.12118677,100420.0,100410.0,0.55206588]
[1733666537772,0.12418677,100420.0,100410.0,0.55206588]
[1733666538458,0.12418677,100420.0,100410.0,0.72950572]
[1733666539379,0.005,100420.0,100410.0,1.02950572]
[1733666539553,0.005,100420.0,100410.0,1.26476425]
[1733666539965,0.005,100420.0,100410.0,1.02950572]
[1733666540162,0.005,100420.0,100410.0,1.26476425]
[1733666541375,0.12418677,100420.0,100410.0,0.85206364]
[1733666542064,0.12418677,100420.0,100410.0,1.21286364]
[1733666542259,0.005,100420.0,100410.0,1.21286364]
[1733666542769,0.005,100420.0,100410.0,0.91286364]
[1733666542962,0.12418677,100420.0,100410.0,0.91286364]
[1733666543160,0.16896877,100420.0,100410.0,0.87406364]
[1733666543463,0.16896877,100420.0,100410.0,0.41367693]
[1733666543766,0.24096974,100420.0,100410.0,0.41367693]
[1733666544070,0.36002263,100420.0,100410.0,0.41367693]
[1733666544265,0.4197294,100420.0,100410.0,0.41367693]
[1733666544461,0.24096974,100420.0,100410.0,0.41367693]
[1733666544770,0.15398774,100420.0,100410.0,0.86908522]
[1733666544960,0.12406061,100420.0,100410.0,0.95426489]
[1733666545163,0.12406061,100420.0,100410.0,0.96446906]
[1733666546062,0.12406061,100420.0,100410.0,0.96446817]
[1733666546464,0.12406061,100420.0,100410.0,0.95637788]
[1733666547474,0.27304835,100420.0,100410.0,0.95637788]
[1733666548381,0.005,100420.0,100410.0,0.96446843]
[1733666548668,0.049782,100420.0,100410.0,0.88426841]
[1733666548871,0.16884261,100420.0,100410.0,0.88426841]
[1733666549366,0.23854261,100420.0,100410.0,0.87928962]
[1733666549770,0.23854261,100420.0,100410.0,0.77970291]
[1733666549976,0.23854261,100420.0,100410.0,0.77970315]
[1733666550497,0.23854261,100420.0,100410.0,0.77659117]
[1733666550676,0.23854261,100420.0,100410.0,0.77970316]
[1733666552367,0.38753035,100420.0,100410.0,0.77970316]
[1733666553779,0.38753035,100420.0,100410.0,0.76949899]
[1733666553969,0.38753035,100420.0,100410.0,0.72471199]
[1733666554167,0.26846974,100420.0,100410.0,0.36391208]
[1733666554375,0.29824166,100420.0,100400.0,0.52556979]
[1733666554572,0.22900949,100410.0,100400.0,0.5186822]
[1733666555367,0.22900949,100410.0,100400.0,0.5206822]
[1733666556876,0.40776915,100410.0,100400.0,0.5206822]
[1733666557271,0.36298215,100410.0,100400.0,0.5206822]
[1733666557473,0.36298215,100410.0,100400.0,0.52566182]
[1733666557674,0.18422249,100410.0,100400.0,0.52566182]
[1733666557879,0.14892249,100410.0,100400.0,0.62525845]
[1733666558075,0.26806887,100410.0,100400.0,0.66115845]
[1733666558681,0.11914638,100410.0,100400.0,0.83859829]
[1733666558881,0.11914638,100410.0,100400.0,0.66115845]
[1733666559286,0.11914638,100410.0,100400.0,0.83859829]
[1733666559476,0.11914638,100410.0,100400.0,0.66115845]
[1733666559783,0.16393338,100410.0,100400.0,0.66115845]
[1733666559978,0.20063338,100410.0,100400.0,0.66115845]
[1733666560180,0.34955587,100410.0,100400.0,0.66115845]
[1733666561388,0.34955587,100410.0,100400.0,0.52566182]
[1733666562183,0.40916915,100410.0,100400.0,0.52566182]
[1733666562484,0.40916915,100410.0,100400.0,0.48087282]
[1733666562884,0.26024666,100410.0,100400.0,0.47089203]
[1733666563483,0.40923013,100410.0,100400.0,0.47089203]
[1733666564174,0.40923013,100410.0,100400.0,0.46591241]
[1733666564577,0.23047047,100410.0,100400.0,0.47089244]
[1733666564778,0.64127047,100410.0,100400.0,0.28753228]
[1733666564978,0.492287,100410.0,100400.0,0.10511241]
[1733666565296,1.01068324,100410.0,100400.0,0.102]
[1733666565591,1.01068324,100410.0,100390.0,0.01]
[1733666565783,0.66741693,100400.0,100380.0,0.02]
[1733666565977,0.66741693,100400.0,100380.0,0.00311301]
[1733666565978,0.19382603,100390.0,100380.0,0.00311301]
[1733666566287,0.0448,100380.0,100370.0,0.01991888]
[1733666566485,0.19857333,100380.0,100370.0,0.01303205]
[1733666566788,0.347416,100380.0,100370.0,0.36391317]
[1733666566975,0.347416,100380.0,100370.0,0.40871717]
[1733666567180,0.15377333,100380.0,100370.0,0.50834357]
[1733666568103,0.15377333,100380.0,100370.0,0.5052304]
[1733666568281,0.15377333,100380.0,100370.0,0.50834377]
[1733666568492,0.12007333,100380.0,100370.0,0.51634377]
[1733666568890,0.16487333,100380.0,100370.0,0.51634377]
[1733666569091,0.0458,100380.0,100370.0,0.51634377]
[1733666569790,0.0458,100380.0,100370.0,0.41671737]
[1733666569992,0.0458,100380.0,100370.0,0.413604]
[1733666570190,0.0458,100380.0,100370.0,0.3688]
[1733666570396,0.0458,100380.0,100370.0,0.008]
[1733666570397,0.16487333,100380.0,100370.0,0.008]
[1733666571834,0.16487333,100380.0,100370.0,0.005]
[1733666572097,0.16487333,100380.0,100370.0,0.001]
[1733666572302,0.16487333,100380.0,100370.0,0.003]
[1733666572989,0.16487333,100380.0,100370.0,0.3638]
[1733666573198,0.16487333,100380.0,100370.0,0.003]
[1733666574293,0.16487333,100380.0,100370.0,0.3638]
[1733666575114,0.16487333,100380.0,100370.0,0.36691342]
[1733666575288,0.16487333,100380.0,100370.0,0.36691343]
[1733666576201,0.16487333,100380.0,100370.0,0.3638]
[1733666578304,0.16487333,100380.0,100370.0,0.003]
[1733666578691,0.16487333,100380.0,100370.0,0.3638]
[1733666578892,0.16464757,100380.0,100370.0,0.41171756]
[1733666580608,0.0458,100380.0,100370.0,0.41171756]
[1733666580808,0.0458,100380.0,100370.0,0.44561756]
[1733666581301,0.001,100380.0,100370.0,0.54524361]
[1733666582698,0.001,100380.0,100370.0,0.5502247]
[1733666584098,0.04490288,100390.0,100380.0,0.0448]
[1733666584311,0.04490288,100390.0,100380.0,0.44461321]
[1733666584503,0.04490288,100390.0,100380.0,0.44959385]
[1733666584809,0.04490288,100390.0,100380.0,0.54922025]
[1733666585398,0.00010488,100390.0,100380.0,0.54922025]
[1733666585799,0.00010488,100390.0,100380.0,0.54921973]
[1733666586401,0.00010488,100390.0,100380.0,0.55121973]
[1733666586906,0.00110488,100390.0,100380.0,0.55221973]
[1733666587107,0.00110488,100390.0,100380.0,0.55421973]
[1733666587307,0.00110488,100390.0,100380.0,0.58801973]
[1733666587806,0.00110488,100390.0,100380.0,0.58601973]
[1733666588209,0.13218075,100400.0,100390.0,0.044796]
[1733666588400,0.13218075,100400.0,100390.0,0.40870882]
[1733666588801,0.13218075,100400.0,100390.0,0.50832529]
[1733666589205,0.13218075,100400.0,100390.0,0.50841069]
[1733666589613,0.13418075,100400.0,100390.0,0.50841069]
[1733666589908,0.19544684,100400.0,100390.0,0.3608854]
[1733666590212,0.23184684,100400.0,100390.0,0.3608854]
[1733666590431,1.76157781,100400.0,100390.0,8.54e-05]
[1733666590710,2.16210878,100400.0,100390.0,8.54e-05]
[1733666592209,0.66210878,100400.0,100390.0,8.54e-05]
[1733666593006,0.94280878,100400.0,100390.0,8.54e-05]
[1733666593705,1.18065652,100400.0,100390.0,8.54e-05]
[1733666594103,0.94280878,100400.0,100390.0,8.54e-05]
[1733666594319,0.58200878,100400.0,100390.0,8.54e-05]
[1733666594518,0.94280878,100400.0,100390.0,8.54e-05]
[1733666596620,1.24280878,100400.0,100390.0,8.54e-05]
[1733666597413,1.48065652,100400.0,100390.0,8.54e-05]
[1733666597811,1.27253974,100400.0,100390.0,8.54e-05]
[1733666598618,1.18120561,100400.0,100390.0,8.54e-05]
[1733666599612,0.94335787,100400.0,100390.0,8.54e-05]
[1733666600416,1.034692,100400.0,100390.0,8.54e-05]
[1733666601012,1.034692,100400.0,100390.0,4e-07]
[1733666601306,1.24335787,100400.0,100390.0,4e-07]
[1733666602312,1.30227071,100400.0,100390.0,4e-07]
[1733666602717,1.02157071,100400.0,100390.0,4e-07]
[1733666603217,0.044796,100390.0,100380.0,0.0099604]
[1733666603416,1.29211064,100390.0,100380.0,0.0099604]
[1733666603720,1.43679336,100390.0,100380.0,0.0099604]
[1733666604319,1.6454173,100390.0,100380.0,0.0099604]
[1733666604515,1.10693994,100390.0,100380.0,0.0099604]
[1733666604716,1.01389336,100390.0,100380.0,0.0119604]